Cogmind - Beta 17 @@@ ROGUE MODE // 2026.07.31 @ 21:56:45 Player: 4R-ZE3 Result: Destroyed by Y-54 Guardian with Flak Gun Performance ------------- Evolutions (0) 0 Regions Visited (3) 600 Robots Destroyed (32) 160 Value Destroyed (838) 838 Prototype IDs (15) 300 Alien Tech Used (0) 0 Bonus (0) 0 TOTAL SCORE: 1898 Bonus ------- None Cogmind --------- Core Integrity 0/250 Matter 300/300 Energy 200/200 System Corruption 2% Temperature Warm (120) Movement Core (500) Ox9 Location -7/Recycling Parts ------- > --- POWER (1) -------- Subdweller Power Source > --- PROPULSION (2) --- (None) > --- UTILITY (2) ------ Large Storage Unit > --- WEAPON (2) ------- Light Assault Rifle Ripper > --- INVENTORY (15) --- Subdweller Power Source Arachnoskeleton Subdweller Monowheel Subdweller Monowheel Flight Unit Flight Unit Flight Unit Flight Unit Flight Unit Flight Unit Subdweller Beam Cannon Subdweller Machine Gun Peak State ------------ > --- POWER ------------ Subdweller Power Source > --- PROPULSION ------- Light Treads Spiked Treads > --- UTILITY ---------- Large Storage Unit Subdweller Optics > --- WEAPON ----------- Subdweller Machine Gun Ripper > --- INVENTORY -------- Subdweller Power Source Arachnoskeleton Subdweller Monowheel Subdweller Monowheel Flight Unit Flight Unit Flight Unit Flight Unit Flight Unit Flight Unit Subdweller Beam Cannon Light Assault Rifle Light Cannon [Rating: 17] Favorites ----------- Power Subdweller Power Source Engine Subdweller Power Source Propulsion Light Treads Treads Light Treads Utility Large Storage Unit Device Subdweller Optics Storage Large Storage Unit Protection Powered Armor Weapon Subdweller Machine Gun Energy Gun Medium Laser Energy Cannon Subdweller Beam Cannon Ballistic Gun Subdweller Machine Gun Ballistic Cannon Light Cannon Slashing Weapon Ripper Build | -11 -10 -10 -7 ------- Run | Yrd Mat Sub Rec Slots Evolved . | . . . . Power . | . . . . Propulsion . | . . . . Utility . | . . . . Weapon . | . . . . Parts Attached 28 | 6 5 14 3 Power 5 | 1 1 3 . Engine 5 | 1 1 3 . Core . | . . . . Reactor . | . . . . Propulsion 6 | 2 1 3 . Treads 6 | 2 1 3 . Leg . | . . . . Wheel . | . . . . Hover . | . . . . Flight . | . . . . Utility 6 | 1 1 3 1 Device 3 | . . 3 . Storage 2 | 1 1 . . Processor . | . . . . Hackware . | . . . . Protection 1 | . . . 1 Artifact . | . . . . Weapon 11 | 2 2 5 2 Energy Gun 2 | 2 . . . Energy Cannon 1 | . . . 1 Ballistic Gun 5 | . 1 3 1 Ballistic Cannon 2 | . 1 1 . Launcher . | . . . . Special Weapon . | . . . . Impact Weapon . | . . . . Slashing Weapon 1 | . . 1 . Piercing Weapon . | . . . . Special Melee Weapon . | . . . . Unidentified Prototypes 1 | . 1 . . Parts Lost 9 | . 1 4 4 Power 2 | . . 2 . Propulsion 4 | . 1 1 2 Utility 2 | . . 1 1 Weapon 1 | . . . 1 Highest Loss Streak 4 | . 1 3 4 To Critical Strikes 1 | . . 1 . Average Backups 12 | 2 10 13 12 Power 1 | . 1 1 1 Propulsion 7 | 1 5 8 9 Utility . | . . . . Weapon 4 | . 4 3 2 Tool/Special . | . . . . Unused Backups 14 | . 3 2 9 Power . | . . . . Propulsion 11 | . 2 . 9 Utility . | . . . . Weapon 3 | . 1 2 . Tool/Special . | . . . . Average Slot Usage (%) 91 | . 85 95 90 Engine 13 | . 14 13 14 Treads 27 | . 27 28 28 Device 6 | . . 10 . Storage 14 | . 14 14 14 Energy Gun 1 | . 3 . . Ballistic Gun 15 | . 13 16 12 Ballistic Cannon 4 | . 10 . 14 Slashing Weapon 6 | . . 10 . Peak Build Rating 17 | 6 9 17 17 Average Rating 11 | 4 8 14 14 On Entrance 7 | . 6 9 13 Avg Prop Armor Cover (%) . | . . . . Naked Turns . | . . . . Heaviest Build 42 | 13 35 34 42 Greatest Support 40 | 40 40 40 40 Greatest Overweight (x) 1 | . . . 1 Average Overweight (x) . | . . . . Largest Inventory Capacity 15 | 8 15 15 15 Average Capacity 14 | 7 13 15 15 Most Carried 15 | 3 15 15 15 Average Carried 13 | 2 10 14 14 Final Capacity 15 | 8 15 15 15 Final Carried 15 | 3 15 15 14 Class Distribution -------------------- 92% | Mutant 7% | Scavenger-Mutant Dominant Class ---------------- Mutant | -10/Materials Mutant | -10/Subcaves Mutant | -7/Recycling Resources | -11 -10 -10 -7 ----------- Run | Yrd Mat Sub Rec Matter Collected 928 | 177 408 265 78 Remotely . | . . . . Salvage Created 1020 | . 592 428 . Parts 65 | . 30 35 . Haulers Intercepted 2 | . 2 . . Recyclers Shooed 1 | . 1 . . Parts Field Recycled . | . . . . Retrieved Matter . | . . . . Parts Self-Destructed 8 | . . 8 . Prevented . | . . . . Parts Restored . | . . . . Kills | -11 -10 -10 -7 ------- Run | Yrd Mat Sub Rec Combat Hostiles Destroyed 26 | . 14 12 . Melee 6 | . . 6 . Guns 13 | . 7 6 . Cannons 7 | . 7 . . Classes Destroyed 7 | . 5 2 . Hauler 2 | . 2 . . Recycler 1 | . 1 . . Operator 1 | . 1 . . Turret 2 | . . 2 . Swarmer 9 | . 5 4 . Grunt 9 | . 9 . . Subdweller 8 | . . 8 . Best Kill Streak 6 | . 5 6 . Combat Bots Only 4 | . 3 4 . Max Kills in Single Turn 2 | . 2 1 . Gunslinging . | . . . . Exploded . | . . . . Melee 1 | . . 1 . Uniques/NPCs Destroyed . | . . . . Combat | -11 -10 -10 -7 -------- Run | Yrd Mat Sub Rec Hostile Shots Fired 255 | . 47 82 126 Missed 81 | . 10 31 40 Hits 174 | . 37 51 86 Projectile 174 | . 37 51 86 Critical Strikes 1 | . . 1 . Damage Taken 1820 | . 421 775 624 Core 253 | . 37 111 105 Absorbed by Shields . | . . . . Core Remaining (%) 100 | 100 . . . Volleys Fired 72 | . 44 22 6 Largest 2 | . 2 2 2 Hottest 110 | . 73 60 110 Shots Fired 136 | . 88 37 11 Gun 80 | . 46 30 4 Cannon 56 | . 42 7 7 Launcher . | . . . . Special . | . . . . Kinetic 133 | . 86 37 10 Thermal 3 | . 2 . 1 Explosive . | . . . . Electromagnetic . | . . . . Robot Hit Streak 18 | . 7 18 6 Robot Miss Streak 6 | . 6 1 1 Penetration Max . | . . . . Secondary Targets . | . . . . Shots Hit Robots 102 | . 53 40 9 Core Hits 40 | . 21 18 1 Critical Kills 1 | . . 1 . Critical Parts Destroyed 1 | . 1 . . Critical Strikes 3 | . 2 1 . Destroy 2 | . 1 1 . Blast 1 | . 1 . . Melee Attacks 25 | . . 25 . Impact . | . . . . Slashing 25 | . . 25 . Piercing . | . . . . Sneak Attacks . | . . . . Combat Hostiles . | . . . . Follow-up Attacks . | . . . . Damage Inflicted 1987 | . 940 900 147 Guns 949 | . 506 418 25 Cannons 616 | . 434 60 122 Explosions . | . . . . Melee 422 | . . 422 . Ramming . | . . . . Kinetic 1539 | . 940 478 121 Thermal 26 | . . . 26 Explosive . | . . . . Electromagnetic . | . . . . Impact . | . . . . Slashing 422 | . . 422 . Piercing . | . . . . Highest Corruption 2 | . 2 2 2 Average Corruption 2 | . 2 2 2 Corruption Purged . | . . . . Corruption Blocked . | . . . . Effects 20 | . . 19 1 Message Errors 5 | . . 5 . Matter Fused 5 | . . 4 1 Energy Discharges 3 | . . 3 . Parts Rejected 1 | . . 1 . Data Loss (minor) 4 | . . 4 . Data Loss (major) 2 | . . 2 . Overload Shots . | . . . . Overflow Damage 16 | . 5 11 . Projectiles 5 | . 5 . . Explosions . | . . . . Melee 11 | . . 11 . Knockbacks 7 | . 6 1 . Impact . | . . . . Kinetic 6 | . 5 1 . Secondary 1 | . 1 . . Self-Inflicted Damage . | . . . . Shots . | . . . . Rammed . | . . . . Targets Rammed . | . . . . Kicked . | . . . . Crushed . | . . . . Highest Temperature 190 | . 33 5 190 Average Temperature 48 | . 12 4 117 Received Heat Transfer 618 | . 171 267 180 Siege Activations . | . . . . Martial Activations . | . . . . Shielding Activations . | . . . . Robots Disrupted . | . . . . Combat Hostiles . | . . . . Robots Corrupted . | . . . . Combat Hostiles . | . . . . Parts Fried . | . . . . Impact Corruptions . | . . . . Robots Melted . | . . . . Combat Hostiles . | . . . . Parts Melted 1 | . . 1 . Heat Transferred 37 | . . . 37 Parts Sabotaged . | . . . . Parts Stolen . | . . . . Parts Stripped . | . . . . Power Chain Reactions . | . . . . Alert | -11 -10 -10 -7 ------- Run | Yrd Mat Sub Rec Maximum Alert Level . | . . . . Low Security (%) 100 | 100 100 . 100 Level 1 . | . . . . Level 2 . | . . . . Level 3 . | . . . . Level 4 . | . . . . Level 5 . | . . . . High Security . | . . . . Max Security . | . . . . Peak Influence 168 | . 168 . 88 Initial 88 | . . . 88 Average 62 | . 66 . 69 Influence Increases 642 | . 447 195 . Destroy 0b10 Robot/C 400 | . 280 120 . Destroy 0b10 Robot/NC 20 | . 20 . . Destroy Leader 64 | . 64 . . Successful Hack 35 | . 35 . . Disable Machine 15 | . 15 . . Destroy Structure 3 | . 3 . . Lose Combat Pursuer 105 | . 30 75 . Influence Decreases 634 | . 327 129 178 Entered New Map 156 | . . 58 98 Time Decay 428 | . 317 71 40 Lost Part 50 | . 10 . 40 Squads Dispatched 2 | . 2 . . Investigation . | . . . . Extermination . | . . . . Reinforcement 2 | . 2 . . Assault . | . . . . Garrison . | . . . . Intercept . | . . . . Searches Triggered . | . . . . Construction Impeded . | . . . . Haulers Reinforced . | . . . . Active Scanning Responses . | . . . . Cargo Convoy Interrupts . | . . . . Stealth | -11 -10 -10 -7 --------- Run | Yrd Mat Sub Rec Distress Signals 2 | . 2 . . Communications Jammed . | . . . . Distress Signals . | . . . . Times Spotted 43 | . 25 16 2 Peak Tracking Total 6 | . 4 6 2 Tactical Retreats 4 | . 1 3 . Traps | -11 -10 -10 -7 ------- Run | Yrd Mat Sub Rec Traps Triggered 1 | . 1 . . Indirectly . | . . . . Trap Hack Attempts . | . . . . Triggered . | . . . . Disarmed . | . . . . Reprogrammed . | . . . . Reused . | . . . . Traps Extracted . | . . . . Installed . | . . . . Triggered . | . . . . Machines | -11 -10 -10 -7 ---------- Run | Yrd Mat Sub Rec Machines Disabled 4 | . 1 3 . Max in Single Turn 1 | . 1 1 . Machines Repaired . | . . . . Machines Dismantled . | . . . . Machines Sabotaged . | . . . . Overloaded Fab Kills . | . . . . Hacking | -11 -10 -10 -7 --------- Run | Yrd Mat Sub Rec Machines Accessed 10 | . 7 2 1 Terminals 5 | . 5 . . Fabricators . | . . . . Repair Stations . | . . . . Recycling Units 3 | . 2 . 1 Scanalyzers . | . . . . Garrison Access . | . . . . Total Hacks 35 | . 20 13 2 Successful 21 | . 8 13 . Failed 13 | . 11 . 2 Catastrophic 2 | . 2 . . Database Lockouts 1 | . 1 . . Manual 10 | . 10 . . Terminals 12 | . 12 . . Fabricators . | . . . . Repair Stations . | . . . . Recycling Units 10 | . 8 . 2 Scanalyzers . | . . . . Garrison Access . | . . . . Terminal Hacks 16 | . 3 13 . Record 12 | . . 12 . Robot Analysis 2 | . 2 . . Zone Layout 1 | . 1 . . Proto ID Catalog 1 | . . 1 . Fabricator Hacks . | . . . . Repair Station Hacks . | . . . . Recycling Unit Hacks 1 | . 1 . . Retrieve Components 1 | . 1 . . Scanalyzer . | . . . . Garrison Access Hacks . | . . . . Unauthorized Hacks 4 | . 4 . . Terminals 4 | . 4 . . Botnet 4 | . 4 . . Fabricators . | . . . . Repair Stations . | . . . . Recycling Units . | . . . . Scanalyzers . | . . . . Garrison Access . | . . . . Data Cores Recovered . | . . . . Used . | . . . . Hacking Detections 8 | . 7 . 1 Full Trace Events . | . . . . Feedback Events . | . . . . Feedback Blocked . | . . . . Robot Schematics Acquired . | . . . . Robots Built . | . . . . Authchips . | . . . . Time . | . . . . Total Robot Build Rating . | . . . . Part Schematics Acquired . | . . . . Parts Built . | . . . . Authchips . | . . . . Time . | . . . . Total Part Build Rating . | . . . . Part Studies Acquired . | . . . . Parts Repaired . | . . . . Time . | . . . . Parts Recycled . | . . . . Recycled Matter . | . . . . Retrieved Matter . | . . . . Retrieved Components 3 | . 3 . . Parts Scanalyzed . | . . . . Part Schematics Acquired . | . . . . Parts Damaged . | . . . . Bothacking | -11 -10 -10 -7 ------------ Run | Yrd Mat Sub Rec Used RIF Installer . | . . . . Robots Hacked . | . . . . Non-combat . | . . . . Combat . | . . . . Robot Hacks Applied . | . . . . Relay Couplers Released . | . . . . Fabnet Peak Effective % . | . . . . Robots Rewired . | . . . . Allies Hacked . | . . . . Hacks Repelled . | . . . . Allies | -11 -10 -10 -7 -------- Run | Yrd Mat Sub Rec Total Allies . | . . . . Largest Group . | . . . . Highest-Rated Group . | . . . . Highest-Rated Ally . | . . . . Total Orders . | . . . . Ally Attacks . | . . . . Total Damage . | . . . . Kills . | . . . . Allies Corrupted . | . . . . Allies Melted . | . . . . Intel | -11 -10 -10 -7 ------- Run | Yrd Mat Sub Rec Active Infowar (turns) 1241 | . . 1241 . Optics 1241 | . . 1241 . Robot Analysis Total 2 | . 2 . . Derelict Logs Recovered 2 | . . 2 . Drone Launches . | . . . . Drone Recoveries . | . . . . Exploration | -11 -10 -10 -7 ------------- Run | Yrd Mat Sub Rec Turns Passed 2828 | 70 987 1691 80 Spaces Moved 1482 | 38 476 938 30 Core 2 | 2 . . . Treads 1480 | 36 476 938 30 Legs . | . . . . Wheels . | . . . . Hover . | . . . . Flight . | . . . . Fastest Speed 50 | 50 160 160 160 Average Speed 160 | 154 160 160 193 Slowest Speed 260 | 160 160 160 260 Overloaded Moves . | . . . . Propulsion Burnouts . | . . . . Robots Hopped . | . . . . Potential Cave-ins . | . . . . Cave-ins Triggered . | . . . . Exploration Rate (%) 36 | 4 76 55 12 Regions Visited 3 Branch Regions 2 Pre-discovered Areas . | . . . . Known Exits Taken . | . . . . Unknown Exits Taken 3 | 1 1 1 . Scrap Searched 5 | . . 5 . Spaces Dug 1 | . . 1 . Terrain Destroyed 1 | . . 1 . Melee 1 | . . 1 . Projectile . | . . . . AOE . | . . . . Terrain Rammed . | . . . . Walls Destroyed . | . . . . Machines Disabled . | . . . . Actions | -11 -10 -10 -7 --------- Run | Yrd Mat Sub Rec Total 1760 | 47 616 1057 40 Wait 105 | . 68 37 . Move 1479 | 37 475 937 30 Hop . | . . . . Pick Up 30 | 4 17 9 . Fast Attach 13 | 5 2 5 1 Attach 9 | 1 1 6 1 Detach . | . . . . Swap 8 | . 2 4 2 Drop 19 | . 7 12 . Fire 72 | . 44 22 6 Melee 25 | . . 25 . Ram . | . . . . Kick . | . . . . Crush . | . . . . Escape Stasis . | . . . . Rewire . | . . . . Trap . | . . . . Miscellaneous . | . . . . Route ------- -11/Scrapyard -10/Materials (discovered 5 exits: [*Mat x3] / [*Min] / *Sub) -10/Subcaves (discovered 2 exits: [*Mat] / *Rec) -7/Recycling History --------- Turn | Location | Event 10 | -11/Scrapyard | Discovered new exit (range 16) 71 | -11/Scrapyard | Entered Materials 312 | -10/Materials | Build established: Mutant 454 | -10/Materials | Discovered new exit (range 16) 565 | -10/Materials | Discovered new exit (range 15) 915 | -10/Materials | Discovered new exit (range 13) 923 | -10/Materials | Discovered new exit (range 15) 935 | -10/Materials | Central database locked down 1052 | -10/Materials | Discovered new exit (range 5) 1058 | -10/Materials | Entered Subcaves 1107 | -10/Subcaves | Learned Materials interactive machine intel 1231 | -10/Subcaves | Learned 2 Materials zone layouts 1284 | -10/Subcaves | Shifting Twisted Machinery released Mak. Sword 1319 | -10/Subcaves | Shifting Twisted Machinery released Piercing Trap 1340 | -10/Subcaves | Visited Clippyterm 1345 | -10/Subcaves | Learned Factory trap positions 1427 | -10/Subcaves | Lost 3 parts (1p1n1u) 1433 | -10/Subcaves | Discovered new exit (range 12) 1492 | -10/Subcaves | Shifting Twisted Machinery released Piercing Trap 1494 | -10/Subcaves | Shifting Twisted Machinery released Sub. Laser 1854 | -10/Subcaves | Visited 4L-MR0's lab 1870 | -10/Subcaves | Found Arachnoskeleton 2688 | -10/Subcaves | Core integrity fell below 50% 2721 | -10/Subcaves | Discovered new exit (range 11) 2749 | -10/Subcaves | Entered Recycling 2780 | -7/Recycling | Found Powered Armor 2824 | -7/Recycling | Core integrity fell below 20% 2829 | -7/Recycling | Destroyed by Y-54 Guardian with Flak Gun Last Messages --------------- 02762_ Connecting with Recycling Unit... 02762_ Current location identified: Recycling 02780_ Acquired Powered Armor. 02791_ System corrupted: Matter fused (-10). 02794_ Acquired 20 matter. 02804_ Y-54 Guardian springs to life. 02804_ Sub. Machine Gun shoots sparks and powers down. 02805_ Acquired 4 matter. 02808_ Acquired 10 matter. 02809_ Acquired 4 matter. 02812_ Acquired 10 matter. 02814_ Acquired 5 matter. 02818_ Powered Armor destroyed. 02819_ Acquired 5 matter. 02820_ Lgt. Treads destroyed. 02822_ Acquired 5 matter. 02823_ Lgt. Cannon destroyed. 02825_ Acquired 10 matter. 02829_ Spk. Treads destroyed. Map ----- +----------------------------------------------------+ | ?????????????????????????????????????????????????? | | ?????????????????????????????????????????????????? | | ?????????????????????????????????????????????????? | | ?????????????????????????????????????????????????? | | ?????????????????????????????????????????????????? | | ?????????????????????????????????????????????????? | | ?????????????????????????????????????????????????? | | ?????????????????????????????????????????????????? | | ?????????????????????????????????????????????????? | | ?????????????????????????????????????##??????????? | | ?????????????????????????##########?## #######???? | | ?????????????????????????#] ! #?# #???? | | ?????????????????????????# ! ! #?# #???? | | ?????????????????????????# #?# #???? | | ?????????????????????????# #?# #???? | | ?????????????????????????# #?# #???? | | ?????????????????????????# #?# #???? | | ?????????????????????????#! ! #?# #???? | | ?????????????????????????# ! #?? #???? | | ?????????????##????#?????# ! #???? ?????? | | ???????????? ### ##########+######+##+######?? | | ????????????? % % #?? | | ????????????? Y #?? | | ????????????? #?? | | ???????????????? ###### # %%##########"Y"#######?? | | ????????????????????????#@%%#????????#"""#???????? | | ????????????????????????#####????????#####???????? | | ?????????????????????????????????????????????????? | | ?????????????????????????????????????????????????? | | | | | | | | | | | | | | | | | | | | | | | | | | | | | | | | | | | | | | | | | | | +----------------------------------------------------+ Best States ------------- Heat Dissipation 25 Energy Generation 15 Energy Capacity 250 Matter Stores 300 Matter Capacity 300 Sight Range 21 Terrain Scan Density 10 Armor Coverage 400 Evasion (%) 40 Recoil Reduction 2 Item Schematics ----------------- None Robot Schematics ------------------ None Fabricated ------------ Nothing Repaired ---------- Nothing Studied --------- None Alien Tech Used ----------------- None Achievements -------------- None Challenges ------------ None Game ------ Seed ChaosCoreWarhead Manual? 0 Play Time 00:18:48 Cumulative 135.5 hours Start 2026.07.31 @ 21:39:08 End 2026.07.31 @ 21:56:45 Sessions 1 Manual Loads 0 Difficulty Rogue Special Mode None Game No. 148 Rogue 94 Adventurer 54 Explorer 0 Win Type - Total 5 Types 3/0/0/1/0/0/0/0/0/1 Lore% 57 Gallery% 54 Achievement% 49 Wizard Run 0 Options --------- Layout 1 ASCII 0 Keyboard 0 Movement Mouse Keybinds 1 Fullscreen 2 Font 32/Tamsyn Map View 50x35 Zoom Use 0% Tactical HUD 1 Map Filters NONE Filters NONE Steam 1 RUN: 7b7e025e-aee4-4da4-b5c6-102adf47813a